[Event "*** Titled Tuesday Blitz"]
[Site "Chess.com"]
[Date "2020.11.24"]
[Round "7"]
[White "KetiGrant"]
[Black "Zq1"]
[Result "0-1"]
[WhiteElo "2410"]
[BlackElo "2588"]
[TimeControl "180+1"]
[EndTime "11:34:47 PST"]
[Termination "Zq1 won on time"]

1. e4 {[%clk 0:03:00.9]} 1... c5 {[%clk 0:02:59]} 2. Nf3 {[%clk 0:02:59.9]} 2...
d6 {[%clk 0:02:59.1]} 3. Bb5+ {[%clk 0:02:58.7]} 3... Bd7 {[%clk 0:02:58.6]} 4.
Bxd7+ {[%clk 0:02:58.1]} 4... Nxd7 {[%clk 0:02:59.2]} 5. O-O {[%clk 0:02:58]}
5... Ngf6 {[%clk 0:02:59.1]} 6. Re1 {[%clk 0:02:57.5]} 6... e6 {[%clk
0:02:58.5]} 7. c3 {[%clk 0:02:57.7]} 7... Be7 {[%clk 0:02:58.4]} 8. d4 {[%clk
0:02:57.6]} 8... cxd4 {[%clk 0:02:58.5]} 9. cxd4 {[%clk 0:02:58.5]} 9... d5
{[%clk 0:02:58.9]} 10. e5 {[%clk 0:02:55.5]} 10... Ne4 {[%clk 0:02:58.9]} 11.
Nbd2 {[%clk 0:02:47.9]} 11... Nxd2 {[%clk 0:02:58.6]} 12. Bxd2 {[%clk 0:02:48]}
12... O-O {[%clk 0:02:57.9]} 13. Rc1 {[%clk 0:02:45.8]} 13... Rc8 {[%clk
0:02:57.7]} 14. Rxc8 {[%clk 0:02:21.6]} 14... Qxc8 {[%clk 0:02:57.3]} 15. h4
{[%clk 0:02:21.8]} 15... h6 {[%clk 0:02:48]} 16. Nh2 {[%clk 0:02:07.5]} 16...
Qc4 {[%clk 0:02:14.8]} 17. Be3 {[%clk 0:01:59.8]} 17... Kh8 {[%clk 0:01:52.3]}
18. a3 {[%clk 0:01:57.7]} 18... Rc8 {[%clk 0:01:46.9]} 19. Qh5 {[%clk
0:01:55.2]} 19... Kg8 {[%clk 0:01:31.7]} 20. Ng4 {[%clk 0:01:54.5]} 20... Bf8
{[%clk 0:01:20]} 21. Rc1 {[%clk 0:00:58.2]} 21... Qxc1+ {[%clk 0:01:19.8]} 22.
Bxc1 {[%clk 0:00:57.6]} 22... Rxc1+ {[%clk 0:01:20.4]} 23. Kh2 {[%clk 0:00:58]}
23... Rc4 {[%clk 0:01:20.4]} 24. Ne3 {[%clk 0:00:34]} 24... Rxd4 {[%clk
0:01:18]} 25. g3 {[%clk 0:00:34.1]} 25... Re4 {[%clk 0:01:10.6]} 26. Qd1 {[%clk
0:00:27.5]} 26... Nxe5 {[%clk 0:01:06.5]} 27. Qb3 {[%clk 0:00:22.8]} 27... b6
{[%clk 0:01:01.7]} 28. Qb5 {[%clk 0:00:22.3]} 28... d4 {[%clk 0:00:47.7]} 29.
Nc4 {[%clk 0:00:20.4]} 29... Nf3+ {[%clk 0:00:32.9]} 30. Kg2 {[%clk 0:00:19.7]}
30... Ne1+ {[%clk 0:00:32.9]} 31. Kf1 {[%clk 0:00:19.1]} 31... d3 {[%clk
0:00:28.2]} 32. Nd2 {[%clk 0:00:14.9]} 32... Re2 {[%clk 0:00:27.5]} 33. Qe8
{[%clk 0:00:08.7]} 33... g6 {[%clk 0:00:25.1]} 34. Nc4 {[%clk 0:00:05.2]} 34...
Kg7 {[%clk 0:00:18.3]} 35. Qd8 {[%clk 0:00:01.3]} 35... Bc5 {[%clk 0:00:16.1]}
0-1

[Event "*** Titled Tuesday Blitz"]
[Site "Chess.com"]
[Date "2020.11.24"]
[Round "7"]
[White "LamaChampetre"]
[Black "MF1966Idrisov"]
[Result "0-1"]
[WhiteElo "2207"]
[BlackElo "2393"]
[TimeControl "180+1"]
[EndTime "11:34:48 PST"]
[Termination "MF1966Idrisov won by resignation"]

1. d4 {[%clk 0:03:00.9]} 1... d6 {[%clk 0:02:59.8]} 2. c4 {[%clk 0:03:00.8]}
2... f5 {[%clk 0:03:00.3]} 3. g3 {[%clk 0:02:58.9]} 3... Nf6 {[%clk 0:03:00.8]}
4. Bg2 {[%clk 0:02:59]} 4... e6 {[%clk 0:03:01.5]} 5. Nf3 {[%clk 0:02:58.3]}
5... Be7 {[%clk 0:03:01.9]} 6. O-O {[%clk 0:02:58.4]} 6... O-O {[%clk
0:03:02.4]} 7. Nbd2 {[%clk 0:02:57.3]} 7... Ne4 {[%clk 0:03:02.2]} 8. Qc2 {[%clk
0:02:56.9]} 8... Nxd2 {[%clk 0:03:00.9]} 9. Bxd2 {[%clk 0:02:55.7]} 9... Bf6
{[%clk 0:03:00.9]} 10. Bc3 {[%clk 0:02:55.5]} 10... Qe7 {[%clk 0:03:00.3]} 11.
e4 {[%clk 0:02:55.6]} 11... e5 {[%clk 0:02:50.7]} 12. exf5 {[%clk 0:02:46.1]}
12... exd4 {[%clk 0:02:39.4]} 13. Nxd4 {[%clk 0:02:40.4]} 13... Bxd4 {[%clk
0:02:35]} 14. Bxd4 {[%clk 0:02:41.3]} 14... Nc6 {[%clk 0:02:33]} 15. f6 {[%clk
0:02:19]} 15... gxf6 {[%clk 0:02:30.7]} 16. Bc3 {[%clk 0:02:17.4]} 16... Bd7
{[%clk 0:02:10.9]} 17. Rfe1 {[%clk 0:02:16.4]} 17... Qg7 {[%clk 0:02:07.9]} 18.
b4 {[%clk 0:01:57.7]} 18... Rab8 {[%clk 0:01:55.9]} 19. f4 {[%clk 0:01:47]}
19... Rfe8 {[%clk 0:01:51.3]} 20. Qb2 {[%clk 0:01:41.3]} 20... Rxe1+ {[%clk
0:01:48.4]} 21. Rxe1 {[%clk 0:01:40.5]} 21... Rf8 {[%clk 0:01:45.4]} 22. b5
{[%clk 0:01:38]} 22... Nd8 {[%clk 0:01:44.6]} 23. Bd4 {[%clk 0:01:07.5]} 23...
Qg6 {[%clk 0:01:34.6]} 24. Re7 {[%clk 0:00:58.3]} 24... Rf7 {[%clk 0:01:31.1]}
25. Bd5 {[%clk 0:00:56.8]} 25... Bh3 {[%clk 0:01:09.5]} 26. Bxf6 {[%clk
0:00:48.2]} 26... Kf8 {[%clk 0:00:59.9]} 27. Bxf7 {[%clk 0:00:39.5]} 27... Nxf7
{[%clk 0:00:47.6]} 28. Rxc7 {[%clk 0:00:39.1]} 28... Qd3 {[%clk 0:00:44.6]} 29.
Rc8+ {[%clk 0:00:37.6]} 29... Nd8 {[%clk 0:00:44.3]} 30. Rxd8+ {[%clk
0:00:36.9]} 30... Kf7 {[%clk 0:00:44.7]} 31. Qc1 {[%clk 0:00:17]} 31... Qe2
{[%clk 0:00:36.4]} 32. Rd7+ {[%clk 0:00:14.3]} 32... Kf8 {[%clk 0:00:24]} 33.
Rd8+ {[%clk 0:00:13.6]} 33... Kf7 {[%clk 0:00:23.8]} 34. Rd7+ {[%clk 0:00:13.7]}
34... Bxd7 {[%clk 0:00:23.7]} 35. Qf1 {[%clk 0:00:07.6]} 35... Qxf1+ {[%clk
0:00:21.6]} 36. Kxf1 {[%clk 0:00:07.7]} 36... Kxf6 {[%clk 0:00:22]} 37. Kf2
{[%clk 0:00:07.6]} 37... Be6 {[%clk 0:00:21.5]} 0-1

[Event "*** Titled Tuesday Blitz"]
[Site "Chess.com"]
[Date "2020.11.24"]
[Round "7"]
[White "mapleaff"]
[Black "Ashedu66"]
[Result "1-0"]
[WhiteElo "2401"]
[BlackElo "2243"]
[TimeControl "180+1"]
[EndTime "11:34:51 PST"]
[Termination "mapleaff won on time"]

1. c4 {[%clk 0:03:00.9]} 1... c5 {[%clk 0:02:58.7]} 2. g3 {[%clk 0:03:01]} 2...
g6 {[%clk 0:02:58.5]} 3. Bg2 {[%clk 0:03:01.4]} 3... Bg7 {[%clk 0:02:58.7]} 4.
Nc3 {[%clk 0:03:02]} 4... Nc6 {[%clk 0:02:58.8]} 5. e3 {[%clk 0:03:01.8]} 5...
d6 {[%clk 0:02:58.1]} 6. Nge2 {[%clk 0:03:01.9]} 6... e5 {[%clk 0:02:58.2]} 7.
O-O {[%clk 0:03:01.5]} 7... Nge7 {[%clk 0:02:58.4]} 8. a3 {[%clk 0:02:58.4]}
8... O-O {[%clk 0:02:56.9]} 9. b4 {[%clk 0:02:58.4]} 9... cxb4 {[%clk
0:02:55.4]} 10. axb4 {[%clk 0:02:59.3]} 10... Nxb4 {[%clk 0:02:55.4]} 11. Ba3
{[%clk 0:02:59.5]} 11... Nbc6 {[%clk 0:02:52.3]} 12. Nb5 {[%clk 0:02:59]} 12...
Be6 {[%clk 0:02:39.8]} 13. Nxd6 {[%clk 0:02:52.9]} 13... Qd7 {[%clk 0:02:39.5]}
14. d4 {[%clk 0:02:50.3]} 14... exd4 {[%clk 0:02:35.4]} 15. exd4 {[%clk
0:02:50.3]} 15... Bh3 {[%clk 0:02:27]} 16. Bxh3 {[%clk 0:02:33.6]} 16... Qxh3
{[%clk 0:02:24.9]} 17. Nxb7 {[%clk 0:02:33.1]} 17... Nf5 {[%clk 0:01:46.9]} 18.
Bxf8 {[%clk 0:02:30.2]} 18... Rxf8 {[%clk 0:01:37.3]} 19. Nf4 {[%clk 0:02:22.7]}
19... Qh6 {[%clk 0:01:35.6]} 20. d5 {[%clk 0:02:18.8]} 20... Ne5 {[%clk
0:01:19.6]} 21. c5 {[%clk 0:01:57.3]} 21... Nd4 {[%clk 0:01:08.1]} 22. Ra3
{[%clk 0:01:49.1]} 22... g5 {[%clk 0:01:03.8]} 23. Ng2 {[%clk 0:01:37.2]} 23...
g4 {[%clk 0:01:00.2]} 24. h4 {[%clk 0:01:37.6]} 24... gxh3 {[%clk 0:00:54.5]}
25. Nf4 {[%clk 0:01:37.4]} 25... h2+ {[%clk 0:00:17.3]} 26. Kh1 {[%clk
0:01:36.7]} 26... Nc4 {[%clk 0:00:13.1]} 27. Ra2 {[%clk 0:01:23.5]} 27... Re8
{[%clk 0:00:11.5]} 28. d6 {[%clk 0:01:20.8]} 28... Be5 {[%clk 0:00:10.8]} 29.
Qg4+ {[%clk 0:01:17.2]} 29... Kh8 {[%clk 0:00:09.4]} 30. Ne2 {[%clk 0:01:11]}
30... Rg8 {[%clk 0:00:08.1]} 31. Qe4 {[%clk 0:01:00.8]} 31... f5 {[%clk
0:00:07.7]} 32. Qd3 {[%clk 0:00:52.6]} 32... f4 {[%clk 0:00:07.2]} 33. Nxd4
{[%clk 0:00:46.8]} 33... fxg3 {[%clk 0:00:06]} 34. fxg3 {[%clk 0:00:46.6]} 34...
Rxg3 {[%clk 0:00:02.5]} 35. d7 {[%clk 0:00:44.4]} 35... Rg1+ {[%clk 0:00:02.3]}
36. Rxg1 {[%clk 0:00:44.2]} 36... hxg1=Q+ {[%clk 0:00:02.6]} 37. Kxg1 {[%clk
0:00:45.1]} 37... Qg5+ {[%clk 0:00:01.5]} 38. Kf1 {[%clk 0:00:35.4]} 38... Qc1+
{[%clk 0:00:01.1]} 39. Ke2 {[%clk 0:00:29.5]} 1-0

[Event "*** Titled Tuesday Blitz"]
[Site "Chess.com"]
[Date "2020.11.24"]
[Round "7"]
[White "Beca95"]
[Black "BocharovD"]
[Result "0-1"]
[WhiteElo "2914"]
[BlackElo "2819"]
[TimeControl "180+1"]
[EndTime "11:34:53 PST"]
[Termination "BocharovD won on time"]

1. d4 {[%clk 0:03:00.9]} 1... Nf6 {[%clk 0:02:59.5]} 2. c4 {[%clk 0:03:00.3]}
2... e6 {[%clk 0:02:59.6]} 3. Nc3 {[%clk 0:02:59.6]} 3... Bb4 {[%clk 0:02:58.2]}
4. Qc2 {[%clk 0:02:59.8]} 4... c5 {[%clk 0:02:57.4]} 5. dxc5 {[%clk 0:02:58.5]}
5... Qc7 {[%clk 0:02:57.3]} 6. a3 {[%clk 0:02:56.8]} 6... Bxc5 {[%clk
0:02:57.2]} 7. Nf3 {[%clk 0:02:57.1]} 7... a6 {[%clk 0:02:56.1]} 8. e3 {[%clk
0:02:55.7]} 8... b6 {[%clk 0:02:54.1]} 9. b3 {[%clk 0:02:40.8]} 9... Bb7 {[%clk
0:02:53.2]} 10. Bb2 {[%clk 0:02:40.3]} 10... Be7 {[%clk 0:02:46.1]} 11. Be2
{[%clk 0:02:39.7]} 11... d6 {[%clk 0:02:45.6]} 12. g4 {[%clk 0:02:35.1]} 12...
Nfd7 {[%clk 0:02:43.8]} 13. Rg1 {[%clk 0:02:25.5]} 13... b5 {[%clk 0:02:34.6]}
14. cxb5 {[%clk 0:02:13.1]} 14... axb5 {[%clk 0:02:33.8]} 15. b4 {[%clk
0:02:13.1]} 15... O-O {[%clk 0:02:25.8]} 16. Nd4 {[%clk 0:02:11.8]} 16... Ne5
{[%clk 0:02:16.6]} 17. Rg3 {[%clk 0:01:49.7]} 17... Nbc6 {[%clk 0:02:11.2]} 18.
Ncxb5 {[%clk 0:01:47.1]} 18... Qb8 {[%clk 0:02:10.8]} 19. Rh3 {[%clk 0:01:40.4]}
19... h6 {[%clk 0:02:05.2]} 20. g5 {[%clk 0:01:09.6]} 20... Rc8 {[%clk
0:01:53.7]} 21. Qb1 {[%clk 0:01:05.9]} 21... Nxd4 {[%clk 0:01:43.2]} 22. Nxd4
{[%clk 0:01:05.1]} 22... Bxg5 {[%clk 0:01:03]} 23. f4 {[%clk 0:01:03.6]} 23...
Bg2 {[%clk 0:01:02.7]} 24. Rg3 {[%clk 0:00:53.3]} 24... Bh4 {[%clk 0:01:02.3]}
25. fxe5 {[%clk 0:00:53.7]} 25... dxe5 {[%clk 0:01:02.8]} 26. Nb3 {[%clk
0:00:53.2]} 26... f5 {[%clk 0:00:58.4]} 27. Kf2 {[%clk 0:00:45.1]} 27... Be4
{[%clk 0:00:56.6]} 28. Qd1 {[%clk 0:00:09.2]} 28... f4 {[%clk 0:00:50.7]} 29.
Qd7 {[%clk 0:00:07]} 29... fxg3+ {[%clk 0:00:47.3]} 30. hxg3 {[%clk 0:00:07.1]}
30... Rf8+ {[%clk 0:00:38.4]} 31. Kg1 {[%clk 0:00:05.9]} 31... Bxg3 {[%clk
0:00:38.7]} 32. Qxe6+ {[%clk 0:00:05.6]} 32... Kh8 {[%clk 0:00:34.5]} 33. Nc5
{[%clk 0:00:05.9]} 33... Bf2+ {[%clk 0:00:23.2]} 34. Kh2 {[%clk 0:00:05.7]}
34... Bf5 {[%clk 0:00:24.1]} 35. Qc6 {[%clk 0:00:05.8]} 35... Bxe3 {[%clk
0:00:22.5]} 36. Re1 {[%clk 0:00:04.1]} 36... Qd8 {[%clk 0:00:22]} 0-1

[Event "*** Titled Tuesday Blitz"]
[Site "Chess.com"]
[Date "2020.11.24"]
[Round "7"]
[White "GM_dmitrij"]
[Black "1977Ivan"]
[Result "0-1"]
[WhiteElo "2867"]
[BlackElo "2689"]
[TimeControl "180+1"]
[EndTime "11:34:53 PST"]
[Termination "1977Ivan won on time"]

1. Nf3 {[%clk 0:03:00.9]} 1... d5 {[%clk 0:02:58.3]} 2. e3 {[%clk 0:03:01.1]}
2... Nf6 {[%clk 0:02:57.2]} 3. c4 {[%clk 0:03:00.9]} 3... g6 {[%clk 0:02:54]} 4.
d4 {[%clk 0:02:57.2]} 4... Bg7 {[%clk 0:02:52.4]} 5. cxd5 {[%clk 0:02:56.3]}
5... Nxd5 {[%clk 0:02:51.7]} 6. e4 {[%clk 0:02:56.8]} 6... Nb6 {[%clk
0:02:51.5]} 7. Nc3 {[%clk 0:02:56.2]} 7... Bg4 {[%clk 0:02:48]} 8. Be3 {[%clk
0:02:55.9]} 8... O-O {[%clk 0:02:44.2]} 9. Be2 {[%clk 0:02:55.2]} 9... Nc6
{[%clk 0:02:43.8]} 10. d5 {[%clk 0:02:54]} 10... Bxf3 {[%clk 0:02:43.5]} 11.
gxf3 {[%clk 0:02:45.2]} 11... Na5 {[%clk 0:02:36.3]} 12. Bd4 {[%clk 0:02:38.6]}
12... Qd6 {[%clk 0:01:54.3]} 13. b3 {[%clk 0:02:22.5]} 13... a6 {[%clk
0:01:32.4]} 14. Bxg7 {[%clk 0:02:21.2]} 14... Kxg7 {[%clk 0:01:33.3]} 15. Qd4+
{[%clk 0:02:19.2]} 15... e5 {[%clk 0:01:32.5]} 16. Qd2 {[%clk 0:02:16.4]} 16...
Nd7 {[%clk 0:01:26.7]} 17. h4 {[%clk 0:02:13.7]} 17... h5 {[%clk 0:01:26.2]} 18.
Nd1 {[%clk 0:02:09]} 18... b6 {[%clk 0:01:23.4]} 19. Rg1 {[%clk 0:02:04.2]}
19... Qe7 {[%clk 0:01:08.6]} 20. Ne3 {[%clk 0:02:03.7]} 20... Kh7 {[%clk
0:01:07.3]} 21. Rc1 {[%clk 0:01:56.8]} 21... Ra7 {[%clk 0:01:02]} 22. Rg5 {[%clk
0:01:52.6]} 22... f6 {[%clk 0:00:49.9]} 23. Rg1 {[%clk 0:01:52]} 23... Rd8
{[%clk 0:00:45.4]} 24. b4 {[%clk 0:01:51.8]} 24... Nb7 {[%clk 0:00:44.6]} 25.
Rxc7 {[%clk 0:01:51.6]} 25... Rda8 {[%clk 0:00:40.8]} 26. Nc4 {[%clk 0:01:14.3]}
26... Nd6 {[%clk 0:00:39.3]} 27. Rc6 {[%clk 0:01:12.3]} 27... Nb5 {[%clk
0:00:33.3]} 28. f4 {[%clk 0:01:04.1]} 28... Nd4 {[%clk 0:00:32.7]} 29. Rd6
{[%clk 0:00:35.9]} 29... b5 {[%clk 0:00:32.4]} 30. fxe5 {[%clk 0:00:36.1]} 30...
bxc4 {[%clk 0:00:31]} 31. Bxh5 {[%clk 0:00:07.3]} 31... Nxe5 {[%clk 0:00:27.4]}
32. Bxg6+ {[%clk 0:00:06]} 32... Nxg6 {[%clk 0:00:26.9]} 33. Qxd4 {[%clk
0:00:06]} 33... Qxd6 {[%clk 0:00:26.4]} 34. h5 {[%clk 0:00:05.8]} 34... Ne5
{[%clk 0:00:25.6]} 35. Ke2 {[%clk 0:00:05.6]} 35... Rg7 {[%clk 0:00:24.3]} 36.
f4 {[%clk 0:00:03.9]} 36... Rxg1 {[%clk 0:00:21]} 37. Qxg1 {[%clk 0:00:04.8]}
37... Rg8 {[%clk 0:00:18.9]} 38. fxe5 {[%clk 0:00:03.2]} 38... Qxe5 {[%clk
0:00:19.8]} 0-1

[Event "*** Titled Tuesday Blitz"]
[Site "Chess.com"]
[Date "2020.11.24"]
[Round "7"]
[White "Azerichess"]
[Black "Sharpchess22"]
[Result "1-0"]
[WhiteElo "2966"]
[BlackElo "2813"]
[TimeControl "180+1"]
[EndTime "11:34:56 PST"]
[Termination "Azerichess won by checkmate"]

1. d4 {[%clk 0:03:00.9]} 1... d5 {[%clk 0:02:57.5]} 2. Nf3 {[%clk 0:03:00.1]}
2... Nf6 {[%clk 0:02:55.8]} 3. c4 {[%clk 0:02:59.5]} 3... c6 {[%clk 0:02:55.5]}
4. Nbd2 {[%clk 0:02:58.2]} 4... Bf5 {[%clk 0:02:54]} 5. Nh4 {[%clk 0:02:54.7]}
5... Bc8 {[%clk 0:02:52.3]} 6. e3 {[%clk 0:02:54.2]} 6... e6 {[%clk 0:02:50.2]}
7. Nhf3 {[%clk 0:02:52.4]} 7... Nbd7 {[%clk 0:02:49.6]} 8. b3 {[%clk 0:02:52.3]}
8... Bd6 {[%clk 0:02:48.6]} 9. Bb2 {[%clk 0:02:52.4]} 9... O-O {[%clk
0:02:48.6]} 10. Bd3 {[%clk 0:02:52.6]} 10... Qe7 {[%clk 0:02:47.1]} 11. Ne5
{[%clk 0:02:51.2]} 11... Ba3 {[%clk 0:02:42.4]} 12. Bc3 {[%clk 0:02:39.9]} 12...
Bb4 {[%clk 0:02:39.3]} 13. Qc2 {[%clk 0:02:39.9]} 13... Bxc3 {[%clk 0:02:37]}
14. Qxc3 {[%clk 0:02:40.8]} 14... c5 {[%clk 0:02:32]} 15. O-O {[%clk 0:02:32.5]}
15... cxd4 {[%clk 0:02:29]} 16. exd4 {[%clk 0:02:33.4]} 16... b6 {[%clk
0:02:27.1]} 17. Nxd7 {[%clk 0:02:21.6]} 17... Bxd7 {[%clk 0:02:20.6]} 18. c5
{[%clk 0:02:21.7]} 18... bxc5 {[%clk 0:02:10.2]} 19. dxc5 {[%clk 0:02:22.6]}
19... e5 {[%clk 0:02:09.4]} 20. Rfe1 {[%clk 0:02:21.7]} 20... Rfe8 {[%clk
0:01:58.4]} 21. b4 {[%clk 0:02:18]} 21... Rac8 {[%clk 0:01:49.2]} 22. Rac1
{[%clk 0:02:13.2]} 22... d4 {[%clk 0:01:41.1]} 23. Qc2 {[%clk 0:02:12.9]} 23...
Nd5 {[%clk 0:01:35.5]} 24. a3 {[%clk 0:02:13.1]} 24... g6 {[%clk 0:01:31.7]} 25.
Nc4 {[%clk 0:02:02.2]} 25... Qg5 {[%clk 0:01:31.2]} 26. Nd6 {[%clk 0:01:59.5]}
26... Nf4 {[%clk 0:01:25.8]} 27. Be4 {[%clk 0:01:58.5]} 27... f5 {[%clk
0:01:22.3]} 28. h4 {[%clk 0:01:42.6]} 28... Qxh4 {[%clk 0:01:12.7]} 29. g3
{[%clk 0:01:37.6]} 29... Qg4 {[%clk 0:01:00.6]} 30. Bh1 {[%clk 0:01:32.7]} 30...
d3 {[%clk 0:00:54.2]} 31. Qd2 {[%clk 0:01:24.1]} 31... Bc6 {[%clk 0:00:21.8]}
32. Bxc6 {[%clk 0:01:11.4]} 32... Rxc6 {[%clk 0:00:21.2]} 33. Qa2+ {[%clk
0:01:11.2]} 33... Re6 {[%clk 0:00:20.7]} 34. Rc4 {[%clk 0:00:38.6]} 34... Ne2+
{[%clk 0:00:10.9]} 35. Rxe2 {[%clk 0:00:38.8]} 35... Qxe2 {[%clk 0:00:10.5]} 36.
Rc2 {[%clk 0:00:39.3]} 36... Qd1+ {[%clk 0:00:08.7]} 37. Kg2 {[%clk 0:00:39.4]}
37... dxc2 {[%clk 0:00:07.8]} 38. Qxe6+ {[%clk 0:00:39.9]} 38... Kg7 {[%clk
0:00:08.1]} 39. Qe7+ {[%clk 0:00:37.8]} 39... Kh6 {[%clk 0:00:08.2]} 40. Nf7+
{[%clk 0:00:37.8]} 40... Kg7 {[%clk 0:00:07.4]} 41. Ng5+ {[%clk 0:00:21.7]}
41... Kh6 {[%clk 0:00:07.3]} 42. Qxh7+ {[%clk 0:00:22]} 42... Kxg5 {[%clk
0:00:07.5]} 43. Qh4# {[%clk 0:00:22.9]} 1-0

[Event "*** Titled Tuesday Blitz"]
[Site "Chess.com"]
[Date "2020.11.24"]
[Round "7"]
[White "MrChampion_Coach"]
[Black "tteshan"]
[Result "1-0"]
[WhiteElo "2522"]
[BlackElo "2372"]
[TimeControl "180+1"]
[EndTime "11:34:56 PST"]
[Termination "MrChampion_Coach won by resignation"]

1. d4 {[%clk 0:03:00.9]} 1... d5 {[%clk 0:02:59.9]} 2. Nf3 {[%clk 0:03:00.4]}
2... Nf6 {[%clk 0:02:59.6]} 3. c4 {[%clk 0:03:00.8]} 3... dxc4 {[%clk
0:03:00.5]} 4. e3 {[%clk 0:02:59.8]} 4... Bg4 {[%clk 0:03:00]} 5. Nbd2 {[%clk
0:02:53.9]} 5... b5 {[%clk 0:02:44.2]} 6. h3 {[%clk 0:02:51]} 6... Bh5 {[%clk
0:02:43]} 7. g4 {[%clk 0:02:46.5]} 7... Bg6 {[%clk 0:02:42.4]} 8. Bg2 {[%clk
0:02:46.9]} 8... c6 {[%clk 0:02:37.7]} 9. Ne5 {[%clk 0:02:46.5]} 9... Qc7 {[%clk
0:02:28.7]} 10. a4 {[%clk 0:02:43.3]} 10... b4 {[%clk 0:02:09.7]} 11. Ndxc4
{[%clk 0:02:40.2]} 11... e6 {[%clk 0:01:58.1]} 12. Bd2 {[%clk 0:02:20.1]} 12...
Be7 {[%clk 0:01:53.5]} 13. Rc1 {[%clk 0:02:19]} 13... a5 {[%clk 0:01:47.8]} 14.
Nxc6 {[%clk 0:01:47.3]} 14... Nxc6 {[%clk 0:01:39.6]} 15. Ne5 {[%clk 0:01:46.8]}
15... O-O {[%clk 0:01:20.4]} 16. Rxc6 {[%clk 0:01:20.8]} 16... Qd8 {[%clk
0:01:05.4]} 17. Nxg6 {[%clk 0:01:16.2]} 17... hxg6 {[%clk 0:01:04]} 18. O-O
{[%clk 0:01:15.2]} 18... Rc8 {[%clk 0:01:01.7]} 19. Qc2 {[%clk 0:01:11.8]} 19...
Qd7 {[%clk 0:00:57.2]} 20. Rc1 {[%clk 0:01:10.2]} 20... Rcd8 {[%clk 0:00:32.7]}
21. Rc7 {[%clk 0:00:58.2]} 21... Qd6 {[%clk 0:00:32.7]} 22. Qd3 {[%clk
0:00:35.9]} 22... e5 {[%clk 0:00:29.7]} 23. R1c6 {[%clk 0:00:34.1]} 23... e4
{[%clk 0:00:22.3]} 24. Bxe4 {[%clk 0:00:33.8]} 24... Nxe4 {[%clk 0:00:09.9]} 25.
Qxe4 {[%clk 0:00:34.7]} 25... Rfe8 {[%clk 0:00:05.6]} 26. Rxd6 {[%clk
0:00:34.1]} 26... Bxd6 {[%clk 0:00:06.5]} 27. Qb7 {[%clk 0:00:32.2]} 27... Bxc7
{[%clk 0:00:07]} 28. Qxc7 {[%clk 0:00:33.1]} 28... Kf8 {[%clk 0:00:07]} 29. Qxa5
{[%clk 0:00:32.8]} 29... Rc8 {[%clk 0:00:07.5]} 30. Bxb4+ {[%clk 0:00:33.6]}
30... Kg8 {[%clk 0:00:07.8]} 31. Bc5 {[%clk 0:00:34.5]} 31... Ra8 {[%clk
0:00:07.6]} 32. Qb5 {[%clk 0:00:34.7]} 32... Reb8 {[%clk 0:00:07.5]} 33. Bb6
{[%clk 0:00:35]} 33... Rb7 {[%clk 0:00:06.4]} 34. a5 {[%clk 0:00:35.1]} 34...
Rab8 {[%clk 0:00:06.4]} 35. Kg2 {[%clk 0:00:34.3]} 35... Kh7 {[%clk 0:00:06.2]}
36. b4 {[%clk 0:00:34.6]} 36... Kg8 {[%clk 0:00:06.3]} 37. g5 {[%clk 0:00:34.7]}
37... Kh7 {[%clk 0:00:06.6]} 38. h4 {[%clk 0:00:35.1]} 38... Kg8 {[%clk
0:00:07]} 39. d5 {[%clk 0:00:36]} 39... Kh7 {[%clk 0:00:07.3]} 40. d6 {[%clk
0:00:36.4]} 40... Kg8 {[%clk 0:00:07.8]} 41. d7 {[%clk 0:00:36.3]} 41... Kf8
{[%clk 0:00:07.8]} 42. Qc5+ {[%clk 0:00:35.9]} 42... Kg8 {[%clk 0:00:07.9]} 43.
Qc8+ {[%clk 0:00:36.8]} 1-0

[Event "*** Titled Tuesday Blitz"]
[Site "Chess.com"]
[Date "2020.11.24"]
[Round "7"]
[White "Satscho"]
[Black "googlegoom"]
[Result "1-0"]
[WhiteElo "2349"]
[BlackElo "2465"]
[TimeControl "180+1"]
[EndTime "11:34:57 PST"]
[Termination "Satscho won by resignation"]

1. e4 {[%clk 0:03:00.9]} 1... c5 {[%clk 0:02:59.6]} 2. Nf3 {[%clk 0:03:00.8]}
2... Nc6 {[%clk 0:02:59.8]} 3. d4 {[%clk 0:03:00.9]} 3... cxd4 {[%clk
0:03:00.3]} 4. Nxd4 {[%clk 0:03:01.8]} 4... Qb6 {[%clk 0:03:00.5]} 5. Nb3 {[%clk
0:03:01.3]} 5... Nf6 {[%clk 0:03:01.1]} 6. Nc3 {[%clk 0:03:01.4]} 6... e6 {[%clk
0:03:01.1]} 7. Qe2 {[%clk 0:02:58.5]} 7... a6 {[%clk 0:03:00.9]} 8. Be3 {[%clk
0:02:53.1]} 8... Qc7 {[%clk 0:03:00.7]} 9. O-O-O {[%clk 0:02:53.1]} 9... d6
{[%clk 0:03:00.4]} 10. g4 {[%clk 0:02:49.5]} 10... h6 {[%clk 0:02:59.9]} 11. h4
{[%clk 0:02:46.7]} 11... b5 {[%clk 0:02:49.7]} 12. a3 {[%clk 0:02:34.4]} 12...
Bb7 {[%clk 0:02:47.7]} 13. Bg2 {[%clk 0:02:32.9]} 13... b4 {[%clk 0:02:47.5]}
14. axb4 {[%clk 0:02:27.3]} 14... Nxb4 {[%clk 0:02:48.4]} 15. g5 {[%clk
0:02:23.1]} 15... hxg5 {[%clk 0:02:48.2]} 16. hxg5 {[%clk 0:02:24]} 16... Rxh1
{[%clk 0:02:47]} 17. Rxh1 {[%clk 0:02:23.7]} 17... Nd7 {[%clk 0:02:47.6]} 18. f4
{[%clk 0:02:16.8]} 18... g6 {[%clk 0:02:27.7]} 19. Rh7 {[%clk 0:02:12.8]} 19...
Rc8 {[%clk 0:02:17.6]} 20. f5 {[%clk 0:02:06.8]} 20... Ne5 {[%clk 0:02:03.8]}
21. fxe6 {[%clk 0:02:05.6]} 21... Qc4 {[%clk 0:01:44.6]} 22. exf7+ {[%clk
0:01:44.5]} 22... Nxf7 {[%clk 0:01:43.3]} 23. Qf2 {[%clk 0:01:16.1]} 23... Qxb3
{[%clk 0:01:35.1]} 24. cxb3 {[%clk 0:00:57]} 24... Nd3+ {[%clk 0:01:34.9]} 25.
Kd2 {[%clk 0:00:57.6]} 25... Nxf2 {[%clk 0:01:35.7]} 26. Bxf2 {[%clk 0:00:58.3]}
26... Bc6 {[%clk 0:01:29]} 27. Bh3 {[%clk 0:00:57.4]} 27... Rd8 {[%clk
0:01:28.6]} 28. Be3 {[%clk 0:00:54.4]} 28... Be7 {[%clk 0:01:26.5]} 29. Be6
{[%clk 0:00:54.5]} 29... Ne5 {[%clk 0:01:17.9]} 30. Ke2 {[%clk 0:00:25.2]} 30...
Bd7 {[%clk 0:01:08.5]} 31. Bd5 {[%clk 0:00:19.6]} 31... Bg4+ {[%clk 0:01:08]}
32. Kf2 {[%clk 0:00:17.5]} 32... Bf8 {[%clk 0:00:53.7]} 33. Na4 {[%clk
0:00:16.4]} 33... Rd7 {[%clk 0:00:53.3]} 34. Rh1 {[%clk 0:00:14.6]} 34... Bg7
{[%clk 0:00:46.1]} 35. Rc1 {[%clk 0:00:13.6]} 35... Nf7 {[%clk 0:00:34.8]} 36.
Kg3 {[%clk 0:00:12.2]} 36... Bh5 {[%clk 0:00:32.6]} 37. Nb6 {[%clk 0:00:12.3]}
37... Rd8 {[%clk 0:00:28.1]} 38. Rc7 {[%clk 0:00:11.1]} 38... Ne5 {[%clk
0:00:26.1]} 39. Rxg7 {[%clk 0:00:11]} 39... Nd3 {[%clk 0:00:22.7]} 40. Be6
{[%clk 0:00:09.5]} 40... Nxb2 {[%clk 0:00:20.1]} 41. Nd5 {[%clk 0:00:09.4]} 1-0